bitfinex-derivatives/quotes_BTCF0:USTF0_20251111
["timestamp","ask_amount","ask_price","bid_price","bid_amount"]
[1762888066353,0.66986425,103150.0,103140.0,0.16256607]
[1762888068357,0.66986425,103150.0,103140.0,0.06558557]
[1762888068864,0.66986425,103150.0,103140.0,0.16256607]
[1762888070354,0.66986425,103150.0,103140.0,0.06558557]
[1762888071148,0.66986425,103150.0,103140.0,0.16256607]
[1762888071354,0.82654964,103150.0,103140.0,0.16256607]
[1762888072061,0.66986425,103150.0,103140.0,0.16256607]
[1762888072662,0.02356796,103150.0,103140.0,0.31925146]
[1762888072866,0.62612539,103150.0,103140.0,0.31925146]
[1762888073163,0.64936539,103150.0,103140.0,0.16256607]
[1762888074765,0.64936539,103150.0,103140.0,0.06558557]
[1762888075364,0.67016131,103150.0,103140.0,0.06558557]
[1762888075671,0.8268467,103150.0,103140.0,0.06558557]
[1762888075967,0.8314467,103150.0,103140.0,0.00704557]
[1762888080375,0.8314467,103150.0,103140.0,0.00484754]
[1762888081464,0.8314467,103150.0,103140.0,0.10182804]
[1762888081667,0.51347592,103150.0,103140.0,0.16244607]
[1762888081860,0.67016131,103150.0,103140.0,0.16244607]
[1762888082060,0.8314467,103150.0,103140.0,0.00704557]
[1762888083764,0.67016131,103150.0,103140.0,0.16244607]
[1762888084075,0.8314467,103150.0,103140.0,0.02979557]
[1762888084575,0.8268467,103150.0,103140.0,0.16244607]
[1762888084769,0.8268467,103150.0,103140.0,0.06546557]
[1762888085168,0.8268467,103150.0,103140.0,0.00704557]
[1762888085373,0.8314467,103150.0,103140.0,0.00704557]
[1762888086465,0.8314467,103150.0,103140.0,0.02979557]
[1762888086864,0.8314467,103150.0,103140.0,0.00704557]
[1762888087066,0.1202299,103130.0,103120.0,0.05227893]
[1762888087375,0.1105393,103120.0,103110.0,0.07513579]
[1762888087571,0.44473154,103120.0,103110.0,0.00010686]
[1762888088367,0.61126885,103120.0,103100.0,0.07227893]
[1762888088575,0.1103675,103090.0,103080.0,0.06625893]
[1762888088769,0.50077431,103090.0,103080.0,0.06061803]
[1762888089068,0.7475556,103090.0,103080.0,0.15765503]
[1762888089270,0.72650879,103090.0,103080.0,0.15765503]
[1762888089472,0.72650879,103090.0,103080.0,0.06061803]
[1762888089669,0.74752577,103090.0,103080.0,0.06074156]
[1762888089864,0.74752577,103090.0,103080.0,0.03905156]
[1762888090068,0.74752577,103090.0,103080.0,0.09935846]
[1762888090266,0.893628,103090.0,103080.0,0.15977846]
[1762888090577,0.40475698,103090.0,103080.0,0.15977846]
[1762888091379,0.50178448,103090.0,103080.0,0.15977846]
[1762888092088,0.50178448,103090.0,103080.0,0.06274156]
[1762888092292,0.74856577,103090.0,103080.0,0.06274156]
[1762888092482,0.74856577,103090.0,103080.0,0.04105156]
[1762888092684,0.74856577,103090.0,103080.0,0.13808846]
[1762888092894,0.74856577,103090.0,103080.0,0.15977846]
[1762888093192,0.50178448,103090.0,103080.0,0.15977846]
[1762888093383,0.1113675,103090.0,103080.0,0.15977846]
[1762888093579,0.4808075,103090.0,103080.0,0.15977846]
[1762888094994,0.72758879,103090.0,103080.0,0.01830156]
[1762888095294,0.72758879,103090.0,103080.0,0.04105156]
[1762888096196,0.87237578,103090.0,103080.0,0.00212353]
[1762888096489,0.89342778,103090.0,103080.0,3.53e-06]
[1762888097285,0.1061464,103070.0,103060.0,4.84e-06]
[1762888097588,0.86710634,103070.0,103060.0,4.84e-06]
[1762888097788,0.86710634,103070.0,103060.0,0.00012964]
[1762888098386,0.0970558,103060.0,103040.0,0.155494]
[1762888098588,0.0970558,103060.0,103050.0,0.1554852]
[1762888098791,0.4672158,103060.0,103050.0,0.15768323]
[1762888099588,0.4672158,103060.0,103050.0,0.15780485]
[1762888100096,0.37016,103060.0,103050.0,0.15780485]
[1762888100295,0.09727301,103080.0,103070.0,0.05784]
[1762888100596,0.46747301,103080.0,103070.0,0.06003803]
[1762888101188,0.7142543,103080.0,103070.0,0.06003803]
[1762888101387,0.7142543,103080.0,103070.0,0.01496803]
[1762888101591,0.7162543,103080.0,103070.0,0.01496803]
[1762888102091,0.7192543,103080.0,103070.0,0.00219803]
[1762888103096,0.86484607,103080.0,103070.0,0.00219803]
[1762888103400,0.0970558,103060.0,103050.0,0.01410162]
[1762888103705,0.4672558,103060.0,103050.0,0.06136965]
[1762888104001,0.71403709,103060.0,103050.0,0.06136965]
[1762888104205,0.4672558,103060.0,103050.0,0.06136965]
[1762888104497,0.4672558,103060.0,103050.0,0.15843485]
[1762888104694,0.3702,103060.0,103050.0,0.15843485]
[1762888105093,0.4672558,103060.0,103050.0,0.15843485]
[1762888106303,0.3702,103060.0,103050.0,0.15843485]
[1762888106696,0.4672558,103060.0,103050.0,0.15843485]
[1762888107695,0.3702,103060.0,103050.0,0.15843485]
[1762888108105,0.3702,103060.0,103050.0,0.40103485]
[1762888108500,0.09727061,103080.0,103070.0,0.1548863]
[1762888108700,0.09727061,103080.0,103070.0,0.15708433]
[1762888109003,0.10713909,102970.0,102960.0,0.25933538]
[1762888109203,0.09715,102960.0,102950.0,0.01277]
[1762888109395,0.12244108,102960.0,102950.0,0.05857267]
[1762888109597,0.34390219,103000.0,102990.0,0.02259]
[1762888109801,0.34390219,103000.0,102990.0,0.04580267]
[1762888109802,0.1088022,103000.0,102990.0,0.04580267]
[1762888109999,0.34609162,103000.0,102990.0,0.04589589]
[1762888110200,0.00219803,103000.0,102990.0,0.04589589]
[1762888110604,0.00219803,103000.0,102990.0,0.14301759]
[1762888111305,0.00219803,103000.0,102990.0,0.53629759]
[1762888111693,0.0970777,103040.0,103000.0,0.05784]
[1762888111898,0.09928203,103030.0,103020.0,0.05784]
[1762888112206,0.00219803,103030.0,103020.0,0.45185267]
[1762888112407,0.00219803,103030.0,103020.0,0.54894607]
[1762888114001,0.00014526,103040.0,103030.0,0.142154]
[1762888114205,0.00234329,103040.0,103030.0,0.14288667]
[1762888114711,0.00234329,103040.0,103030.0,0.53584667]
[1762888115608,0.00334329,103040.0,103030.0,0.53584667]
[1762888115908,0.00345461,103040.0,103030.0,0.53584667]
[1762888116699,0.10052921,103040.0,103030.0,0.53584667]
[1762888117005,0.10052921,103040.0,103030.0,0.43876267]
[1762888117310,0.09952921,103040.0,103030.0,0.43876267]
[1762888117608,0.00245461,103040.0,103030.0,0.53584667]
[1762888117807,0.09952921,103040.0,103030.0,0.53584667]
[1762888118008,0.09952921,103040.0,103030.0,0.43824267]
[1762888118205,0.09952921,103040.0,103030.0,0.53532667]
[1762888118507,0.09952921,103040.0,103030.0,0.43824267]
[1762888118904,0.09952921,103040.0,103030.0,0.04580267]
[1762888119211,0.3463105,103040.0,103030.0,0.43796267]
[1762888119613,0.09952921,103040.0,103030.0,0.43796267]
[1762888119906,0.09952921,103040.0,103020.0,0.1098583]
[1762888119907,0.0970841,103030.0,103020.0,0.05784]
[1762888120107,0.0022876,103030.0,103020.0,0.54754617]
[1762888121110,0.0032876,103030.0,103020.0,0.54754617]
[1762888121609,0.00108957,103030.0,103020.0,0.54754617]
[1762888121810,0.0254262,103030.0,103020.0,0.79018617]
[1762888122111,0.02762423,103030.0,103020.0,0.54754617]
[1762888123613,0.02762423,103030.0,103020.0,0.50538617]
[1762888124005,0.00014526,103040.0,103030.0,0.1421541]
[1762888124209,0.05205271,103060.0,103050.0,0.1421352]
[1762888124412,0.05425074,103060.0,103050.0,0.5335352]
[1762888124914,0.15142243,103060.0,103050.0,0.5335352]
[1762888125114,0.09936972,103060.0,103050.0,0.5335352]
[1762888125712,0.10036972,103060.0,103050.0,0.5335352]
[1762888126308,0.05536663,103060.0,103050.0,0.5335352]
[1762888126715,0.05536663,103060.0,103050.0,0.5334552]
[1762888127013,0.00431392,103060.0,103050.0,0.5334552]
[1762888129016,0.10136972,103060.0,103050.0,0.5334552]
[1762888129216,0.00431392,103060.0,103050.0,0.5334552]
[1762888129713,0.10136972,103060.0,103050.0,0.1421352]
[1762888129916,0.10136972,103060.0,103050.0,0.5328552]
[1762888130215,0.00431392,103060.0,103050.0,0.5328552]
[1762888132017,0.00211589,103060.0,103050.0,0.5328552]
[1762888132803,0.00014526,103070.0,103060.0,0.1760858]
[1762888133610,0.00234329,103070.0,103060.0,0.1760858]
[1762888133815,0.00242317,103070.0,103060.0,0.1760858]
[1762888134718,0.00242317,103070.0,103060.0,0.5658458]
[1762888135918,0.02763567,103070.0,103060.0,0.5658458]
[1762888137116,0.02763567,103070.0,103060.0,0.1760858]
[1762888137319,0.02763567,103070.0,103060.0,0.5655658]
[1762888140813,0.02763567,103070.0,103060.0,0.1760858]
[1762888141012,0.02763567,103070.0,103060.0,0.5644458]
[1762888142725,0.02763567,103070.0,103060.0,0.1760858]
[1762888142921,0.02763567,103070.0,103060.0,0.5640458]
[1762888143326,0.34380909,103090.0,103080.0,0.201367]
[1762888143620,0.34454176,103090.0,103080.0,0.59152503]
[1762888143821,0.00073267,103090.0,103080.0,0.59152503]
[1762888144422,0.00081068,103090.0,103080.0,0.59152503]
[1762888144625,0.00014526,103100.0,103090.0,0.2013575]
[1762888144923,0.00087793,103100.0,103090.0,0.20355553]
[1762888145826,0.00125785,103100.0,103090.0,0.20355553]
[1762888146026,0.34378749,103120.0,103110.0,0.10433]
[1762888146221,0.34452016,103120.0,103110.0,0.49416803]
[1762888146422,0.48998453,103120.0,103110.0,0.10652803]
[1762888146728,0.48998453,103120.0,103110.0,0.49408803]
[1762888146918,0.24327301,103120.0,103110.0,0.59109683]
[1762888147123,0.00080244,103120.0,103110.0,0.59109683]
[1762888147321,0.35058303,103120.0,103110.0,0.49508803]
[1762888147827,0.35058303,103120.0,103110.0,0.59209683]
[1762888148021,0.00680244,103120.0,103110.0,0.59209683]
[1762888148220,0.00480244,103120.0,103110.0,0.59081683]
[1762888149029,0.00014526,103130.0,103120.0,0.1769594]
[1762888149325,0.00014526,103130.0,103120.0,0.17915743]
[1762888149524,0.09786793,103130.0,103120.0,0.17915743]
[1762888149722,0.09786793,103130.0,103120.0,0.46935803]
[1762888150828,0.29397688,103130.0,103120.0,0.17915743]
[1762888151129,0.29397688,103130.0,103120.0,0.46923803]
[1762888151524,0.29397688,103130.0,103120.0,0.49356803]
[1762888151828,0.29397688,103130.0,103120.0,0.49448803]
[1762888155032,0.29397688,103130.0,103120.0,0.10752803]
[1762888155235,0.29397688,103130.0,103120.0,0.49388803]
[1762888155435,0.31819297,103130.0,103120.0,0.49388803]
[1762888155729,0.31819297,103130.0,103120.0,0.59088743]
[1762888157330,0.31819297,103130.0,103120.0,0.10752803]
[1762888157740,0.46368938,103130.0,103120.0,0.02537]
[1762888158335,0.46368938,103130.0,103120.0,0.06416]
[1762888158734,0.46368938,103130.0,103120.0,0.10533]
[1762888158922,0.46568938,103130.0,103120.0,0.10533]
[1762888160833,4.02e-06,103130.0,103120.0,0.59024743]
[1762888161133,0.52573142,103150.0,103140.0,0.1988206]
[1762888161334,0.52573142,103150.0,103140.0,0.20101863]
[1762888162037,0.42876022,103150.0,103140.0,0.20101863]
[1762888162731,0.43076022,103150.0,103140.0,0.58661863]
[1762888163340,0.43076022,103150.0,103140.0,0.78272758]
[1762888163527,0.43276022,103150.0,103140.0,0.78272758]
[1762888163733,0.43276022,103150.0,103140.0,2.08661863]
[1762888164337,0.43076022,103150.0,103140.0,2.08761863]
[1762888164539,0.42876022,103150.0,103140.0,2.08761863]
[1762888165140,0.42876022,103150.0,103140.0,2.08861863]
[1762888165639,0.42876022,103150.0,103140.0,2.08821863]
[1762888166428,0.01719022,103150.0,103140.0,2.08821863]
[1762888166627,0.11221271,103180.0,103170.0,0.0969524]
[1762888166935,0.06016,103180.0,103170.0,0.48423043]
[1762888167128,0.29171895,103180.0,103170.0,0.48479043]
[1762888167439,0.09561,103180.0,103170.0,0.48479043]
[1762888167636,0.02286,103180.0,103170.0,0.48479043]
[1762888167836,0.02286,103180.0,103170.0,0.48679043]
[1762888168032,0.02286,103180.0,103170.0,0.68289938]
[1762888168226,0.02286,103180.0,103170.0,0.68189938]
[1762888168534,0.02286,103180.0,103170.0,0.68389938]
[1762888169035,0.02286,103180.0,103170.0,0.68289938]
[1762888169236,0.02286,103180.0,103170.0,0.68489938]
[1762888170135,0.06016,103180.0,103170.0,0.48879043]
[1762888170336,0.09561,103180.0,103170.0,0.48879043]
[1762888170737,0.02286,103180.0,103170.0,0.48879043]
[1762888170937,0.09561,103180.0,103170.0,0.48879043]
[1762888171137,0.1925529,103180.0,103170.0,0.48827043]
[1762888171336,0.09561,103180.0,103170.0,0.48827043]
[1762888171735,0.09561,103180.0,103170.0,0.10315043]
[1762888172043,0.09561,103180.0,103170.0,0.48819043]
[1762888172741,0.0048,103190.0,103180.0,0.0969429]
[1762888172942,0.02879354,103190.0,103180.0,0.09914093]
[1762888174239,0.02879354,103190.0,103180.0,0.27948319]
[1762888174439,0.02879354,103190.0,103180.0,0.28048319]
[1762888175141,0.08525,103220.0,103210.0,0.0969147]
[1762888175346,0.08525,103220.0,103210.0,0.09911273]
[1762888177143,0.08744803,103220.0,103210.0,0.07777484]
[1762888177345,0.08744803,103220.0,103210.0,0.07877484]
[1762888177643,0.18435343,103220.0,103210.0,0.07877484]
[1762888178250,0.38046238,103220.0,103210.0,0.07877484]
[1762888178945,0.38046238,103220.0,103210.0,0.00173267]
[1762888179149,0.28355698,103220.0,103210.0,0.09864737]
[1762888179449,0.18435343,103220.0,103210.0,0.09864737]
[1762888180532,0.08744803,103220.0,103210.0,0.09864737]
[1762888181649,0.18435343,103220.0,103210.0,0.09864737]
[1762888182751,0.08744803,103220.0,103210.0,0.09864737]
[1762888183451,0.18435343,103220.0,103210.0,0.09864737]
[1762888184253,0.08744803,103220.0,103210.0,0.0828828]
[1762888184652,0.18435343,103220.0,103210.0,0.0828828]
[1762888184952,0.08744803,103220.0,103210.0,0.0828828]
[1762888185447,0.10041,103230.0,103220.0,0.0969054]
[1762888185649,0.02766,103230.0,103220.0,0.4585955]
[1762888185953,0.06715803,103230.0,103220.0,0.65470445]
[1762888186150,0.10260803,103230.0,103220.0,0.65470445]
[1762888186351,0.10041,103230.0,103220.0,0.65470445]
[1762888186544,0.06496,103230.0,103220.0,0.65470445]
[1762888186747,0.06696,103230.0,103220.0,0.65470445]
[1762888186947,0.10241,103230.0,103220.0,0.65470445]
[1762888187147,0.12607758,103230.0,103220.0,0.65470445]
[1762888188445,0.12607758,103230.0,103220.0,0.4585955]
[1762888188647,0.12827561,103230.0,103220.0,0.4585955]
[1762888191953,0.12827561,103230.0,103220.0,0.65470445]
[1762888192354,0.12827561,103230.0,103220.0,0.4585955]
[1762888192652,0.22517151,103230.0,103220.0,0.4585955]
[1762888193355,0.22517151,103230.0,103220.0,0.0748355]
[1762888193662,0.10158,103220.0,103210.0,0.4658828]
[1762888193857,0.12744561,103220.0,103210.0,0.06081385]
[1762888194061,0.22435091,103220.0,103210.0,0.44385385]
[1762888194253,0.22435091,103220.0,103210.0,0.42809032]
[1762888194657,0.12744561,103220.0,103210.0,0.42809032]
[1762888194864,0.22435091,103220.0,103210.0,0.04505032]
[1762888195058,0.22435091,103220.0,103210.0,0.04605032]
[1762888195361,0.20106872,103220.0,103210.0,0.04605032]
[1762888195768,0.39717767,103220.0,103210.0,0.001]
[1762888196462,0.83207038,103220.0,103210.0,0.001]
[1762888196966,0.84856246,103220.0,103210.0,0.00067987]
[1762888197463,0.0969146,103210.0,103200.0,0.09706906]
[1762888197763,0.27425072,103210.0,103200.0,0.09706906]
[1762888198159,0.47035967,103210.0,103200.0,0.00014526]
[1762888198557,0.48682395,103210.0,103200.0,0.00014526]
[1762888199160,0.48682395,103210.0,103200.0,0.00114526]
[1762888199360,0.48682395,103210.0,103200.0,0.09806946]
[1762888199560,0.48782395,103210.0,103200.0,0.09806946]
[1762888200662,0.48882395,103210.0,103200.0,0.00014526]
[1762888201063,0.1963736,103190.0,103180.0,0.00484567]
[1762888201270,0.80082816,103190.0,103180.0,0.00484567]
[1762888201463,0.80082816,103190.0,103170.0,0.0969524]
[1762888201464,0.06122,103180.0,103170.0,0.0969524]
[1762888201764,0.02366758,103180.0,103170.0,0.29306135]
[1762888202070,0.05111416,103190.0,103180.0,0.096943]
[1762888202260,0.02866447,103190.0,103180.0,0.29305195]
[1762888202461,0.02866447,103190.0,103180.0,0.53733195]
[1762888202662,0.02866447,103190.0,103180.0,0.93733195]
[1762888202865,7e-08,103190.0,103180.0,0.93733195]
[1762888203065,0.0745613,103210.0,103190.0,0.0969313]
[1762888203266,0.05348724,103210.0,103200.0,0.19610895]
[1762888203460,0.05128921,103210.0,103200.0,0.29303315]
[1762888203865,0.15292724,103210.0,103200.0,0.0969242]
[1762888204067,0.26709752,103210.0,103200.0,0.0969241]
[1762888204267,0.10163803,103210.0,103200.0,0.0969241]
[1762888204569,0.19855273,103210.0,103200.0,0.0969241]
[1762888204873,0.19855273,103210.0,103200.0,0.0979241]
[1762888205261,0.19855273,103210.0,103200.0,0.002]
[1762888205262,0.39466168,103210.0,103200.0,0.002]
[1762888205664,0.1739141,103200.0,103190.0,0.09707836]
[1762888205972,0.24562893,103200.0,103190.0,0.09707836]
[1762888206271,0.37222108,103200.0,103190.0,0.09707876]
[1762888206464,0.17611213,103200.0,103190.0,0.09707876]
[1762888206664,0.07918803,103200.0,103190.0,0.09707876]
[1762888208559,0.10163803,103200.0,103190.0,0.09707876]
[1762888208969,0.19856213,103200.0,103190.0,0.09707876]
[1762888210573,0.19856223,103200.0,103190.0,0.09707876]
[1762888211667,0.10163803,103200.0,103190.0,0.09707876]
[1762888211876,0.19856223,103200.0,103190.0,0.09707876]
[1762888212571,0.10163803,103200.0,103190.0,0.09707876]
[1762888212873,0.19856223,103200.0,103190.0,0.00014526]
[1762888213371,0.86767457,103200.0,103190.0,0.00014526]
[1762888213671,0.1963736,103190.0,103180.0,0.00484567]
[1762888213873,0.19857163,103190.0,103180.0,0.00484567]
[1762888214871,0.50852069,103190.0,103180.0,0.00584567]
[1762888215687,0.50852069,103190.0,103180.0,0.00684567]
[1762888215887,0.50852069,103190.0,103180.0,0.00584567]
[1762888216089,0.22128835,103190.0,103180.0,0.00584567]
[1762888216487,0.22128835,103190.0,103180.0,0.00484567]
[1762888216786,0.22128835,103190.0,103180.0,0.10178867]
[1762888217986,0.19857163,103190.0,103180.0,0.10178867]
[1762888218485,0.19857163,103190.0,103180.0,0.10178857]
[1762888220083,0.22129424,103190.0,103180.0,0.10178857]
[1762888220490,0.22129424,103190.0,103180.0,0.00484567]
[1762888220792,0.22129424,103190.0,103180.0,0.10178857]
[1762888221387,0.1979529,103180.0,103170.0,0.00014526]
[1762888221588,0.89114588,103180.0,103170.0,0.00014526]
[1762888221794,0.1979623,103170.0,103160.0,0.096955]
[1762888222090,0.22288294,103170.0,103160.0,0.096955]
[1762888222795,0.12593064,103170.0,103160.0,0.096955]
[1762888223893,0.22288294,103170.0,103160.0,0.096955]
[1762888225498,0.12593064,103170.0,103160.0,0.096955]
[1762888225799,0.22288294,103170.0,103160.0,0.096955]
[1762888226493,0.10101,103160.0,103150.0,0.0971988]
[1762888226702,0.12593064,103160.0,103150.0,0.0971988]
[1762888226901,0.60345234,103160.0,103150.0,0.0971988]
[1762888227797,0.60345234,103160.0,103150.0,0.0981988]
[1762888227997,0.48376803,103160.0,103150.0,0.0991988]
[1762888233401,0.10320803,103160.0,103150.0,0.0991988]
[1762888235105,0.20016973,103160.0,103150.0,0.0991988]
[1762888235503,0.10320803,103160.0,103150.0,0.0991988]
[1762888241301,0.10101,103170.0,103160.0,0.0969617]
[1762888241508,0.10320803,103170.0,103160.0,0.0969617]
[1762888241699,0.02445526,103180.0,103160.0,0.48115574]
[1762888241700,0.10115526,103180.0,103160.0,0.48115574]
[1762888241896,0.10335329,103180.0,103170.0,0.0969523]
[1762888242102,0.10335329,103180.0,103170.0,0.4761523]
[1762888242301,0.06449526,103180.0,103170.0,0.76338464]
[1762888242506,0.02445526,103180.0,103170.0,1.00570464]
[1762888242802,0.10335329,103180.0,103170.0,0.4761923]
[1762888243502,0.10435329,103180.0,103170.0,0.4761923]
[1762888244202,0.10435329,103180.0,103170.0,0.4771923]
[1762888245199,0.10435329,103180.0,103170.0,0.4771123]
[1762888245604,0.10335329,103180.0,103170.0,0.0979523]
[1762888245906,0.20029619,103180.0,103170.0,0.0979523]
[1762888246100,0.22289719,103180.0,103170.0,0.0979523]
[1762888246297,0.22290089,103180.0,103170.0,0.0989523]
[1762888246696,0.22290089,103180.0,103170.0,0.0979523]
[1762888247607,0.22290089,103180.0,103170.0,0.001]
[1762888247805,0.51013323,103180.0,103170.0,0.001]
[1762888248003,0.10101,103160.0,103150.0,0.0971988]
[1762888248204,0.10320803,103160.0,103150.0,0.0971988]
[1762888248708,0.20016973,103160.0,103150.0,0.0971988]
[1762888248908,0.10320803,103160.0,103150.0,0.0971988]
[1762888249111,0.12582808,103160.0,103150.0,0.0971988]
[1762888249311,0.22278978,103160.0,103150.0,0.0971988]
[1762888249510,0.22278978,103160.0,103150.0,0.0981988]
[1762888249910,0.12582808,103160.0,103150.0,0.0981988]
[1762888250614,0.12582808,103160.0,103150.0,0.0991988]
[1762888251312,0.22278978,103160.0,103150.0,0.0991988]
[1762888251914,0.12582808,103160.0,103150.0,0.0991988]
[1762888252916,0.22278978,103160.0,103150.0,0.0991988]
[1762888253117,0.12582808,103160.0,103150.0,0.0991988]
[1762888254511,0.06654803,103160.0,103150.0,0.38643114]
[1762888254815,0.10024803,103160.0,103150.0,0.0991988]
[1762888255614,0.02431,103160.0,103150.0,0.38643114]
[1762888256116,0.06,103160.0,103150.0,0.38643114]
[1762888257317,0.02431,103160.0,103150.0,0.38643114]
[1762888260021,0.06,103160.0,103150.0,0.38643114]
[1762888261021,0.02431,103160.0,103150.0,0.38643114]
[1762888261619,0.08905,103160.0,103150.0,0.38643114]
[1762888262127,0.09124803,103160.0,103150.0,0.0991988]
[1762888262624,0.09124803,103160.0,103150.0,0.4769988]
[1762888263224,0.09124803,103160.0,103150.0,0.76423114]
[1762888264329,0.02431,103160.0,103150.0,0.76423114]
[1762888264518,0.02431,103170.0,103160.0,0.0969617]
[1762888264721,0.08919526,103180.0,103170.0,0.0969523]
[1762888264923,0.02445526,103180.0,103170.0,0.76190464]
[1762888265120,0.08919526,103180.0,103170.0,0.76190464]
[1762888265325,0.09139329,103180.0,103170.0,0.76190464]
[1762888265722,0.09139329,103180.0,103170.0,0.0969523]
[1762888265930,0.09139329,103180.0,103170.0,0.4747923]
[1762888267332,0.18933619,103180.0,103170.0,0.0969523]
[1762888267522,0.09239329,103180.0,103170.0,0.4757923]
[1762888267723,0.18833619,103180.0,103170.0,0.4757923]
[1762888267922,0.18833619,103180.0,103170.0,0.0989523]
[1762888268432,0.09139329,103180.0,103170.0,0.0989523]
[1762888269325,0.47556853,103180.0,103170.0,0.002]
[1762888269523,0.21091631,103180.0,103170.0,0.002]
[1762888270531,0.21091631,103180.0,103170.0,0.001]
[1762888270733,0.1813523,103170.0,103160.0,0.0969612]
[1762888270933,0.18355033,103170.0,103160.0,0.0969612]
[1762888271940,0.18355033,103170.0,103160.0,0.0979612]
[1762888272345,0.08659803,103170.0,103160.0,0.0989612]
[1762888273236,0.05282803,103170.0,103160.0,0.38619354]
[1762888273436,0.08659803,103170.0,103160.0,0.38619354]
[1762888273828,0.08659803,103170.0,103160.0,0.0989612]
[1762888274844,0.08659803,103170.0,103160.0,0.29482903]
[1762888275243,0.01966,103170.0,103160.0,0.29482903]
[1762888275439,0.01966,103170.0,103160.0,0.53714903]
[1762888275742,0.08919526,103180.0,103170.0,0.0969523]
[1762888275942,0.09139329,103180.0,103170.0,0.66998013]
[1762888276641,0.09139329,103180.0,103170.0,0.4741123]
[1762888278334,0.09139329,103180.0,103170.0,0.4751123]
[1762888278737,0.09139329,103180.0,103170.0,0.4761123]
[1762888279844,0.09139329,103180.0,103170.0,0.67198013]
[1762888281546,0.02445526,103180.0,103170.0,0.67198013]
[1762888281741,0.02665329,103180.0,103170.0,0.67198013]
[1762888282439,0.08732329,103180.0,103170.0,0.67198013]
[1762888282939,0.08732329,103180.0,103170.0,0.63276437]
[1762888287142,0.08732329,103180.0,103170.0,0.4753123]
[1762888287444,0.18426619,103180.0,103170.0,0.0989523]
[1762888287744,0.18426619,103180.0,103170.0,0.4751523]
[1762888287946,0.0802,103170.0,103160.0,0.25361107]
[1762888288148,0.2390501,103170.0,103160.0,0.26566107]
[1762888288340,0.3360024,103170.0,103160.0,0.01205]
[1762888288544,0.1771617,103160.0,103150.0,0.024333]
[1762888288743,0.3360118,103160.0,103150.0,0.000233]
[1762888289040,0.35826767,103160.0,103150.0,0.25385617]
[1762888289237,0.08239803,103160.0,103150.0,0.27795617]
[1762888289839,0.17935973,103160.0,103150.0,0.27795617]
[1762888290238,0.17935973,103160.0,103150.0,0.27895617]
[1762888290645,0.08239803,103160.0,103150.0,0.27895617]
[1762888291438,0.08239803,103160.0,103150.0,0.27995617]
[1762888292345,0.00219803,103160.0,103150.0,0.43660824]
[1762888292649,0.0802,103170.0,103160.0,0.1210617]
[1762888292839,0.08239803,103170.0,103160.0,0.81080584]
[1762888294847,0.08339803,103170.0,103160.0,0.69336869]
[1762888295543,0.08239803,103170.0,103160.0,0.69336869]
[1762888299350,0.02445526,103180.0,103170.0,0.1210523]
[1762888299552,0.00014526,103180.0,103170.0,0.31691929]
[1762888299848,0.03428329,103180.0,103170.0,0.31691929]
[1762888300039,0.05381329,103180.0,103170.0,0.31691929]
[1762888300238,0.08254329,103180.0,103170.0,0.1210523]
[1762888300443,0.08254329,103180.0,103170.0,0.1220523]
[1762888300944,0.08254329,103180.0,103170.0,0.4981323]
[1762888302552,0.08254329,103180.0,103170.0,0.4991323]
[1762888303940,0.08254329,103180.0,103170.0,0.4990923]
[1762888306042,0.08254329,103180.0,103170.0,0.69495929]
[1762888306449,0.05381329,103180.0,103170.0,0.69495929]
[1762888308854,0.08254329,103180.0,103170.0,0.69495929]
[1762888310148,0.00014526,103180.0,103170.0,0.69495929]
[1762888310346,0.05614,103190.0,103180.0,0.106043]
[1762888310547,0.05833803,103190.0,103180.0,0.30190999]
[1762888311152,0.08706803,103190.0,103180.0,0.30190999]
[1762888312251,0.08706803,103190.0,103180.0,0.106043]
[1762888312647,0.08806803,103190.0,103180.0,0.106043]
[1762888313657,0.08706803,103190.0,103180.0,0.106043]
[1762888313861,0.08806803,103190.0,103180.0,0.106043]
[1762888315453,0.08706803,103190.0,103180.0,0.106043]
[1762888315654,0.08706803,103190.0,103180.0,0.107043]
[1762888315655,0.08806803,103190.0,103180.0,0.107043]
[1762888316355,0.08706803,103190.0,103180.0,0.108043]
[1762888316856,0.08706803,103190.0,103180.0,0.42133848]
[1762888317458,0.08706803,103190.0,103180.0,0.108043]
[1762888317656,0.08706803,103190.0,103180.0,0.26469074]
[1762888318548,0.34064937,103190.0,103180.0,0.0111]
[1762888318749,0.34064937,103190.0,103180.0,0.00655]
[1762888318950,0.34064937,103190.0,103180.0,0.105743]
[1762888318951,0.24371577,103190.0,103180.0,0.105743]
[1762888319252,0.24371577,103190.0,103180.0,0.26239074]
[1762888319458,0.08706803,103190.0,103180.0,0.26239074]
[1762888319757,0.08706803,103190.0,103180.0,0.26139074]
[1762888319958,0.08806803,103190.0,103180.0,0.26139074]
[1762888320258,0.24471577,103190.0,103180.0,0.26139074]
[1762888320459,0.08806803,103190.0,103180.0,0.26139074]
[1762888320659,0.24471577,103190.0,103180.0,0.26139074]
[1762888321154,0.24471577,103190.0,103180.0,0.26039074]
[1762888321959,0.34164937,103190.0,103180.0,0.16444774]
[1762888322152,0.34064937,103190.0,103180.0,0.0088]
[1762888322354,0.36285826,103190.0,103180.0,0.0088]
[1762888322553,0.36285826,103190.0,103180.0,0.105743]
[1762888322956,0.36285826,103190.0,103180.0,0.0088]
[1762888323361,0.26692466,103190.0,103180.0,0.104743]
[1762888323555,0.36385826,103190.0,103180.0,0.104743]
[1762888324062,0.36385826,103190.0,103180.0,0.103743]
[1762888324562,0.36385826,103190.0,103180.0,0.101493]
[1762888325455,0.26692466,103190.0,103180.0,0.1014929]
[1762888325649,0.1698629,103180.0,103170.0,0.10159066]
[1762888325856,0.50758481,103180.0,103170.0,0.00014526]
[1762888326455,0.50758481,103180.0,103170.0,0.09709766]
[1762888326659,0.35093707,103180.0,103170.0,0.10259766]
[1762888326863,0.25399417,103180.0,103170.0,0.10259766]
[1762888327161,0.35093717,103180.0,103170.0,0.10359766]
[1762888327960,0.05527,103190.0,103180.0,0.00225]
[1762888328159,0.1077268,103190.0,103180.0,0.78993848]
[1762888329363,0.1087268,103190.0,103180.0,0.78993848]
[1762888329565,0.169863,103180.0,103170.0,0.10034766]
[1762888329866,0.32870877,103180.0,103170.0,0.6344454]
[1762888330166,0.32870877,103180.0,103170.0,0.37984526]
[1762888330360,0.32870877,103180.0,103170.0,0.00014526]
[1762888330757,0.32870877,103180.0,103170.0,0.00114526]
[1762888331452,0.32870877,103180.0,103170.0,0.09909766]
[1762888331662,0.35088192,103180.0,103170.0,0.00214526]
[1762888331861,0.35088192,103180.0,103170.0,0.10134766]
[1762888332751,0.32870877,103180.0,103170.0,0.10134766]
[1762888333564,0.23176577,103180.0,103170.0,0.10134766]
[1762888333869,0.07511803,103180.0,103170.0,0.2602454]
[1762888334963,0.07511803,103180.0,103170.0,0.26026831]
[1762888340374,0.00219803,103180.0,103170.0,0.26026831]
[1762888340670,0.0783,103190.0,103180.0,0.0969429]
[1762888340972,0.10266981,103190.0,103180.0,0.62877355]
[1762888341760,0.10366981,103190.0,103180.0,0.62877355]